bitfinex-derivatives/quotes_SOLF0:USTF0_20240907
["timestamp","ask_amount","ask_price","bid_price","bid_amount"]
[1725702992268,3.929,127.28,127.25,9.68]
[1725702992471,9.68,127.29,127.21,4.063]
[1725702992665,9.68,127.29,127.23,9.68]
[1725702993675,3.9294,127.27,127.23,13.6101]
[1725702994665,3.9294,127.27,127.24,3.9301]
[1725702994870,3.9295,127.26,127.24,3.9301]
[1725702995372,3.9295,127.26,127.23,13.6103]
[1725702995876,3.9298,127.25,127.23,9.68]
[1725702996075,3.9298,127.25,127.22,3.9306]
[1725702997876,3.9301,127.24,127.21,5.2682]
[1725702998187,13.54023506,127.26,127.21,1.3373]
[1725702998478,3.9303,127.24,127.21,5.2683]
[1725702998979,13.54023506,127.26,127.21,5.2683]
[1725702999676,3.9306,127.23,127.21,1.3373]
[1725703002081,3.9306,127.23,127.2,7.85022393]
[1725703002980,3.9309,127.22,127.19,3.9316]
[1725703003276,3.9309,127.22,127.19,13.6116]
[1725703004175,3.9309,127.22,127.19,3.9316]
[1725703004481,3.9309,127.22,127.19,13.6116]
[1725703008281,3.9306,127.23,127.2,3.9314]
[1725703017089,3.9309,127.22,127.19,13.6115]
[1725703017587,3.9309,127.22,127.19,9.68]
[1725703018083,9.68,127.28,127.21,9.68]
[1725703018286,9.68,127.28,127.22,3.96131762]
[1725703018488,9.68,127.28,127.21,9.68]
[1725703018689,3.93,127.25,127.22,3.9306]
[1725703020683,3.93,127.25,127.21,13.51549909]
[1725703020684,1.2982,127.29,127.23,9.68]
[1725703021389,1.2982,127.29,127.23,13.58046076]
[1725703022279,1.2982,127.29,127.24,3.9301]
[1725703022879,1.2982,127.29,127.23,13.58046076]
[1725703022880,9.68,127.28,127.23,3.9302]
[1725703024786,3.9297,127.26,127.23,3.9302]
[1725703027193,9.68,127.28,127.22,15.0052]
[1725703027194,3.9299,127.25,127.22,15.0052]
[1725703027689,3.9299,127.25,127.22,11.0745]
[1725703029400,3.9299,127.25,127.23,3.9304]
[1725703029987,1.2982,127.29,127.23,3.9304]
[1725703030195,161.90627505,127.31,127.24,9.68]
[1725703030397,0.51168862,127.3,127.24,9.68]
[1725703030992,3.9293,127.27,127.24,13.6099]
[1725703032490,33.27,127.3,127.24,13.6099]
[1725703034505,3.9297,127.26,127.24,13.6099]
[1725703038695,3.9298,127.25,127.23,13.6104]
[1725703039904,3.9298,127.25,127.22,5.3251]
[1725703040202,3.9298,127.25,127.22,15.0051]
[1725703051708,3.9298,127.25,127.23,9.68]
[1725703055507,33.27,127.29,127.23,9.68]
[1725703056207,3.9301,127.25,127.23,9.68]
[1725703060518,3.9301,127.24,127.22,5.3251]
[1725703060720,3.9301,127.24,127.22,15.0051]
[1725703068731,3.92256108,127.25,127.17,2.7938]
[1725703068936,9.68,127.26,127.19,9.68]
[1725703069230,3.9308,127.22,127.19,13.6115]
[1725703070020,3.9308,127.22,127.2,2.86426098]
[1725703070224,3.9308,127.22,127.19,13.6115]
[1725703070426,3.9308,127.22,127.2,2.86452958]
[1725703070622,3.9308,127.22,127.19,13.6115]
[1725703070832,3.9308,127.22,127.2,2.86453412]
[1725703071023,3.9308,127.22,127.19,13.6115]
[1725703071225,3.9308,127.22,127.2,2.86452814]
[1725703071425,3.9308,127.22,127.19,13.6115]
[1725703072438,3.9308,127.22,127.2,2.86452383]
[1725703072630,3.9308,127.22,127.19,13.6115]
[1725703072936,3.9308,127.22,127.2,2.86455939]
[1725703073121,3.9308,127.22,127.19,13.6115]
[1725703073326,3.9308,127.22,127.2,2.86455939]
[1725703073632,3.9308,127.22,127.19,13.6115]
[1725703074134,3.9308,127.22,127.2,2.86452985]
[1725703074330,3.9308,127.22,127.19,13.6115]
[1725703074534,3.9308,127.22,127.2,2.86452698]
[1725703074736,3.9308,127.22,127.19,13.6115]
[1725703074935,3.92514479,127.25,127.2,2.86453416]
[1725703075134,9.68,127.24,127.19,13.6115]
[1725703075335,13.57211743,127.24,127.19,13.6115]
[1725703075837,3.9309,127.22,127.2,2.86453129]
[1725703076028,3.9309,127.22,127.19,13.6115]
[1725703076339,13.57211743,127.24,127.2,2.86452985]
[1725703076537,3.9311,127.21,127.19,13.6115]
[1725703076832,3.9311,127.21,127.2,2.8645123]
[1725703079036,3.9311,127.21,127.19,13.6115]
[1725703079630,3.9311,127.21,127.2,2.86459837]
[1725703082538,3.9309,127.22,127.2,2.86459837]
[1725703082837,9.68,127.27,127.21,9.68]
[1725703083037,3.99781127,127.26,127.21,9.68]
[1725703084132,3.9306,127.23,127.21,9.68]
[1725703093956,3.9307,127.22,127.21,9.68]
[1725703096342,3.9306,127.23,127.21,9.68]
[1725703097856,3.9303,127.24,127.21,13.6109]
[1725703098155,3.9303,127.24,127.21,9.68]
[1725703098355,3.9303,127.24,127.22,3.9306]
[1725703102766,3.9303,127.24,127.21,13.6109]
[1725703104665,34.5823,127.28,127.21,13.6109]
[1725703104966,9.68,127.27,127.2,7.78272111]
[1725703105168,3.9307,127.23,127.21,2.86449342]
[1725703105467,9.68,127.25,127.18,5.3465]
[1725703105665,9.68,127.25,127.19,2.86473176]
[1725703105666,4.0066118,127.24,127.19,2.86473176]
[1725703105862,3.931,127.22,127.2,2.86473176]
[1725703106069,3.931,127.22,127.18,11.0947]
[1725703106256,4.0066118,127.24,127.19,2.86481072]
[1725703106460,3.9312,127.21,127.18,1.4147]
[1725703106662,13.6866118,127.24,127.19,2.86489219]
[1725703106863,13.6866118,127.24,127.18,11.0947]
[1725703107062,13.6866118,127.24,127.18,1.4147]
[1725703107260,9.68,127.23,127.19,2.86501716]
[1725703107465,9.68,127.23,127.18,1.4147]
[1725703107669,9.68,127.23,127.19,2.86502745]
[1725703107969,3.9316,127.2,127.18,1.4147]
[1725703108169,3.9316,127.2,127.19,2.8650584]
[1725703110363,3.9316,127.2,127.18,1.4147]
[1725703110967,3.9316,127.2,127.19,2.86502458]
[1725703111166,3.9316,127.2,127.18,1.4147]
[1725703112269,3.932,127.18,127.14,1.4163]
[1725703112570,1.396,127.26,127.14,1.4163]
[1725703112571,9.68,127.2,127.15,2.86556247]
[1725703112759,9.68,127.2,127.16,2.86556247]
[1725703112962,9.68,127.2,127.17,2.86556247]
[1725703113161,13.65012143,127.2,127.14,1.3369]
[1725703113362,13.65012143,127.2,127.15,2.86607242]
[1725703113571,13.65012143,127.2,127.14,1.3369]
[1725703114074,3.9328,127.16,127.14,1.3369]
[1725703114266,13.65012143,127.2,127.14,1.3369]
[1725703114664,3.9328,127.16,127.15,2.86607384]
[1725703114876,3.9328,127.16,127.14,1.3369]
[1725703118465,13.65012143,127.2,127.14,1.3369]
[1725703118466,3.9323,127.17,127.14,5.2699]
[1725703118668,3.9323,127.17,127.14,14.9499]
[1725703121674,3.9323,127.17,127.15,3.9329]
[1725703123776,3.9323,127.17,127.14,14.95]
[1725703124979,3.9323,127.17,127.15,3.9328]
[1725703129877,3.9321,127.18,127.15,3.9328]
[1725703131681,3.9323,127.17,127.15,3.9328]
[1725703132077,3.9323,127.17,127.14,14.9499]
[1725703132676,3.9321,127.18,127.14,11.0169]
[1725703132876,3.9321,127.18,127.14,13.88265325]
[1725703133284,3.9321,127.18,127.15,3.9327]
[1725703133681,3.9324,127.17,127.15,3.9327]
[1725703134677,9.68,127.2,127.14,1.3369]
[1725703135385,3.9324,127.17,127.14,5.2699]
[1725703137382,3.9324,127.17,127.15,3.9329]
[1725703141388,3.9321,127.18,127.15,3.9328]
[1725703142396,3.9323,127.17,127.15,3.9328]
[1725703147202,3.9321,127.18,127.15,3.9328]
[1725703151703,9.68,127.2,127.14,1.3369]
[1725703151704,3.9326,127.17,127.14,5.2701]
[1725703151905,3.9326,127.17,127.14,14.9501]
[1725703152706,3.9326,127.17,127.15,3.9329]
[1725703162016,3.9326,127.17,127.14,14.9499]
[1725703167925,3.9326,127.17,127.15,3.9329]
[1725703168309,3.9326,127.17,127.14,11.0169]
[1725703169217,3.9326,127.17,127.14,5.2698]
[1725703169418,3.9326,127.16,127.13,3.93092904]
[1725703169621,3.9326,127.16,127.13,3.9334]
[1725703169826,3.9326,127.16,127.13,7.90807572]
[1725703194835,3.9323,127.17,127.13,13.65467572]
[1725703195030,3.85737122,127.21,127.15,9.68]
[1725703195227,10.9976,127.22,127.15,9.68]
[1725703195427,3.9322,127.18,127.15,13.6128]
[1725703197838,3.9322,127.18,127.16,3.9326]
[1725703203338,1.3422,127.23,127.16,9.68]
[1725703203543,5.17771604,127.23,127.17,9.68]
[1725703203938,3.9315,127.2,127.17,13.6121]
[1725703204935,9.68,127.22,127.16,14.9922]
[1725703205243,5.17771604,127.23,127.16,14.9922]
[1725703205244,3.932,127.18,127.16,1.3797]
[1725703206436,3.9318,127.19,127.16,1.3797]
[1725703206640,9.68,127.22,127.17,3.9321]
[1725703206934,5.17771604,127.23,127.17,9.68]
[1725703207141,3.9312,127.21,127.18,3.9318]
[1725703208338,3.9309,127.22,127.19,3.9315]
[1725703208540,3.9309,127.22,127.19,17.6210309]
[1725703209140,3.89626509,127.23,127.2,9.68]
[1725703209340,9.68,127.26,127.2,9.68]
[1725703209644,3.86794864,127.25,127.2,9.68]
[1725703210239,3.9303,127.24,127.21,3.9309]
[1725703211535,3.93,127.25,127.22,3.9307]
[1725703211737,3.87294012,127.28,127.23,9.68]
[1725703211947,3.91933206,127.29,127.24,9.68]
[1725703212147,3.9293,127.27,127.24,13.6099]
[1725703212342,9.68,127.26,127.22,1.3584]
[1725703212647,3.9303,127.24,127.21,3.9309]
[1725703212840,9.68,127.25,127.2,11.0568]
[1725703213047,3.9309,127.22,127.19,3.9315]
[1725703213950,9.68,127.23,127.19,3.9315]
[1725703214148,9.68,127.23,127.18,13.6118]
[1725703215144,3.9313,127.21,127.18,13.6118]
[1725703216344,3.9309,127.22,127.19,13.6116]
[1725703217345,3.9306,127.23,127.2,3.9313]
[1725703218347,3.9308,127.22,127.2,3.9313]
[1725703219853,3.9308,127.22,127.19,13.6115]
[1725703220044,3.9307,127.22,127.19,9.68]
[1725703220650,3.9307,127.22,127.19,13.6114]
[1725703223958,3.9306,127.23,127.2,3.9313]
[1725703224156,12.4525,127.27,127.21,9.68]
[1725703224656,3.9303,127.24,127.21,13.611]
[1725703224855,13.66538159,127.28,127.22,9.68]
[1725703225058,9.68,127.28,127.22,9.68]
[1725703225356,3.9298,127.25,127.22,13.6106]
[1725703226050,3.9296,127.26,127.23,3.9304]
[1725703227062,3.9296,127.26,127.23,13.6104]
[1725703228357,3.9296,127.26,127.17,5.30126308]
[1725703228358,1.3015,127.3,127.24,13.6458901]
[1725703228860,3.9293,127.27,127.24,17.5757901]
[1725703229059,3.9293,127.27,127.24,13.6458901]
[1725703229563,3.9293,127.27,127.24,17.5758901]
[1725703229854,9.68,127.27,127.21,9.68]
[1725703230459,3.9301,127.25,127.21,13.6108]
[1725703236469,3.9301,127.25,127.22,3.9307]
[1725703240162,3.9301,127.25,127.22,13.6107]
[1725703240864,3.9297,127.26,127.24,9.68]
[1725703241070,1.3015,127.3,127.25,9.68]
[1725703241660,3.9294,127.27,127.25,9.68]
[1725703242276,3.9292,127.28,127.26,9.68]
[1725703244168,9.68,127.31,127.25,9.68]
[1725703244570,3.9293,127.27,127.25,9.68]
[1725703244770,3.85393837,127.29,127.24,5.35721528]
[1725703244973,9.68,127.31,127.24,11.0556]
[1725703245274,3.9296,127.26,127.24,11.0556]
[1725703250279,3.929,127.28,127.24,11.0556]
[1725703250583,9.68,127.28,127.22,13.6106]
[1725703250985,3.93,127.25,127.22,13.6106]
[1725703253286,3.93,127.25,127.23,3.9304]
[1725703255884,3.93,127.25,127.22,13.6106]
[1725703260892,3.93,127.25,127.24,9.68]
[1725703264093,3.9303,127.24,127.18,1.3783]
[1725703264302,4.01314329,127.29,127.18,1.3783]
[1725703264303,9.68,127.27,127.18,1.3783]
[1725703264500,9.68,127.27,127.2,9.68]
[1725703264897,3.9307,127.23,127.2,9.68]
[1725703265797,3.9308,127.22,127.2,9.68]
[1725703266098,11.0983,127.26,127.19,9.68]
[1725703266299,3.9313,127.21,127.19,9.68]
[1725703266598,11.0983,127.26,127.19,9.68]
[1725703267300,3.9312,127.21,127.19,9.68]
[1725703281203,3.9314,127.2,127.19,9.68]
[1725703286205,3.9312,127.21,127.19,9.68]
[1725703286600,9.68,127.25,127.18,11.0583]
[1725703286799,3.9315,127.2,127.18,11.0583]
[1725703287812,3.9315,127.2,127.18,1.3783]
[1725703303318,9.68,127.23,127.16,3.9324]
[1725703303623,9.68,127.22,127.15,13.62424575]
[1725703303919,3.9321,127.18,127.15,17.55694575]
[1725703307629,3.9319,127.19,127.16,3.9325]
[1725703308523,3.9319,127.19,127.17,9.68]
[1725703313631,1.4183,127.26,127.18,9.68]
[1725703313926,11.0983,127.26,127.2,9.68]
[1725703314332,3.9309,127.22,127.2,9.68]
[1725703319037,3.9309,127.22,127.2,13.6113]
[1725703320338,3.9309,127.22,127.2,9.68]
[1725703321841,3.9306,127.23,127.2,9.68]
[1725703322043,1.4183,127.26,127.21,9.68]
[1725703322438,1.2841,127.28,127.22,3.99781127]
[1725703322439,10.9641,127.28,127.22,3.99781127]
[1725703323139,3.93,127.25,127.22,7.92851127]
[1725703323940,3.93,127.25,127.23,9.68]
[1725703325039,3.9296,127.26,127.24,9.68]
[1725703327539,3.9298,127.25,127.22,18.95281127]
[1725703338950,3.9302,127.24,127.22,11.0244]
[1725703346269,3.9302,127.24,127.22,14.88297306]
[1725703346473,3.9298,127.25,127.23,9.68]
[1725703346970,1.3935,127.3,127.24,9.68]
[1725703347360,3.9295,127.26,127.24,9.68]
[1725703349272,146.00040544,127.32,127.24,9.68]
[1725703349472,149.98437949,127.32,127.28,9.68]
[1725703349867,3.9286,127.3,127.28,9.68]
[1725703354674,3.9286,127.3,127.28,13.6088]
[1725703354974,3.9286,127.3,127.29,9.68]
[1725703356968,3.9286,127.3,127.29,9.63188463]
[1725703357371,1.3335,127.35,127.29,9.63188463]
[1725703357573,1.3335,127.35,127.31,9.68]
[1725703357767,3.9276,127.33,127.31,9.68]
[1725703358279,146.60882252,127.37,127.32,9.68]
[1725703358480,3.9272,127.34,127.33,9.68]
[1725703359974,3.9265,127.36,127.33,13.6072]
[1725703360170,4.01596645,127.39,127.35,9.68]
[1725703360481,3.926,127.38,127.36,9.68]
[1725703367484,13.64174442,127.4,127.35,10.9693]
[1725703367676,0.50755529,127.39,127.35,10.9693]
[1725703367877,3.9263,127.37,127.35,10.9693]
[1725703370582,3.9263,127.37,127.35,9.68]
[1725703370886,9.68,127.38,127.3,3.99199579]
[1725703371088,0.50772496,127.37,127.31,9.68]
[1725703371280,0.50772496,127.37,127.31,17.50289403]
[1725703371889,3.9272,127.34,127.31,17.50289403]
[1725703372487,3.93269512,127.37,127.31,13.6079]
[1725703372789,3.9273,127.34,127.31,13.6079]
[1725703373985,3.92969379,127.36,127.31,9.68]
[1725703374190,9.68,127.38,127.31,9.68]
[1725703374487,3.9275,127.33,127.31,9.68]
[1725703374689,9.68,127.36,127.29,9.68]
[1725703374894,3.9281,127.31,127.29,9.68]
[1725703382486,9.68,127.35,127.29,9.68]
[1725703383087,3.9284,127.3,127.28,5.33205813]
[1725703383286,3.9284,127.3,127.29,9.68]
[1725703385294,3.9281,127.31,127.29,9.68]
[1725703385997,3.9281,127.31,127.3,9.68]
[1725703391100,3.9278,127.32,127.3,9.68]
[1725703392792,3.928,127.31,127.3,9.68]
[1725703394507,1.3956,127.36,127.29,9.68]
[1725703394508,9.68,127.35,127.29,9.68]
[1725703396097,3.9283,127.3,127.29,9.68]
[1725703401810,3.9286,127.29,127.28,1.3403]
[1725703403509,3.84486751,127.31,127.25,3.9296]
[1725703403701,9.68,127.32,127.26,9.68]
[1725703404211,9.68,127.32,127.23,106.65236053]
[1725703404399,10.9864,127.31,127.25,9.68]
[1725703404599,3.9297,127.26,127.25,9.68]
[1725703404806,3.9297,127.26,127.23,110.58256053]
[1725703405104,3.9297,127.26,127.25,9.68]
[1725703413913,3.9297,127.26,127.24,9.68]
[1725703417717,3.9293,127.27,127.25,9.68]
[1725703418024,3.9293,127.27,127.26,9.68]
[1725703419018,3.9291,127.28,127.26,9.68]
[1725703425921,14.87724559,127.31,127.24,3.93]
[1725703426115,14.87724559,127.31,127.24,13.61]
[1725703426311,16.21564559,127.31,127.24,13.61]
[1725703427219,3.9297,127.26,127.24,13.61]
[1725703430115,3.9293,127.27,127.25,13.6098]
[1725703430617,3.9293,127.27,127.25,9.68]
[1725703431519,3.9293,127.27,127.24,3.93]
[1725703431716,16.21564559,127.31,127.23,106.65236053]
[1725703432023,9.68,127.29,127.23,12.3432]
[1725703432213,3.93,127.25,127.23,12.3432]
[1725703433419,3.93,127.25,127.23,16.2736]
[1725703435925,3.9297,127.26,127.23,16.2736]
[1725703437918,3.9297,127.26,127.25,9.68]
[1725703438723,3.9301,127.24,127.23,1.2913]
[1725703440417,3.9301,127.24,127.22,9.68]
[1725703440616,3.9304,127.23,127.22,9.68]
[1725703440829,9.68,127.27,127.19,2.5962]
[1725703441024,11.0823,127.27,127.2,13.64855719]
[1725703441426,3.9309,127.22,127.2,9.68]
[1725703441727,3.9309,127.22,127.2,13.57818852]
[1725703443525,3.9309,127.22,127.2,17.50948852]
[1725703444230,3.9306,127.23,127.2,17.50948852]
[1725703445528,3.9307,127.22,127.2,13.57818852]
[1725703446334,3.9306,127.23,127.2,17.50938852]
[1725703447133,3.9306,127.23,127.21,9.68]
[1725703448534,3.9306,127.23,127.2,17.50938852]
[1725703451634,3.9306,127.23,127.2,7.82938852]
[1725703451830,3.9306,127.23,127.2,17.50938852]
[1725703454435,3.9308,127.22,127.2,17.50938852]
[1725703454637,1.4023,127.27,127.21,13.6109]
[1725703454833,9.68,127.29,127.23,9.68]
[1725703455235,9.68,127.29,127.24,9.68]
[1725703455732,3.9298,127.25,127.24,9.68]
[1725703458643,3.9297,127.26,127.24,9.68]
[1725703463437,3.9297,127.26,127.24,13.6101]
[1725703463642,3.9294,127.27,127.24,14.9336]
[1725703463843,3.9294,127.27,127.26,9.68]
[1725703466341,137.65665721,127.31,127.26,13.6095]
[1725703467041,3.9289,127.29,127.26,13.6095]
[1725703475047,9.68,127.36,127.28,9.68]
[1725703475245,0.50809258,127.34,127.3,9.68]
[1725703476351,3.9283,127.3,127.28,9.68]
[1725703478945,3.9283,127.3,127.28,13.6089]
[1725703488162,3.9281,127.31,127.29,3.9286]
[1725703488361,3.9281,127.31,127.3,9.68]
[1725703488852,3.9281,127.31,127.3,13.70045029]
[1725703489256,3.9281,127.31,127.29,13.6086]
[1725703490756,3.9281,127.31,127.29,9.68]
[1725703491562,4.02523353,127.31,127.27,13.609]
[1725703491762,9.68,127.33,127.27,13.609]
[1725703492655,3.9286,127.3,127.27,13.609]
[1725703493152,3.9286,127.3,127.28,9.68]
[1725703495255,146.24271717,127.34,127.28,9.68]
[1725703496062,3.9285,127.3,127.28,9.68]
[1725703496250,146.24271717,127.34,127.28,9.68]
[1725703497657,3.9285,127.3,127.28,9.68]
[1725703500469,146.24271717,127.34,127.29,9.68]
[1725703500662,146.24271717,127.34,127.32,9.68]
[1725703500859,3.9275,127.33,127.32,9.68]
[1725703501159,146.24271717,127.34,127.32,9.68]
[1725703501363,150.16991717,127.34,127.33,9.68]
[1725703503370,150.16991717,127.34,127.32,7.9221119]
[1725703503667,150.16991717,127.34,127.32,9.68]
[1725703504767,3.9273,127.33,127.32,9.68]
[1725703508768,3.9278,127.32,127.29,3.9284]
[1725703508970,3.9278,127.32,127.3,9.68]
[1725703509371,3.9284,127.3,127.25,107.74511275]
[1725703509575,146.24271717,127.34,127.29,9.68]
[1725703510072,3.9281,127.31,127.3,9.68]
[1725703513375,146.24271717,127.34,127.29,9.68]
[1725703514078,3.9283,127.3,127.29,9.68]
[1725703526385,3.84958321,127.31,127.27,9.68]
[1725703526583,10.9878,127.33,127.27,9.68]
[1725703527387,3.9289,127.28,127.27,9.68]
[1725703533589,1.3078,127.33,127.27,9.68]
[1725703533890,146.24271717,127.34,127.3,9.68]
[1725703535394,3.9281,127.31,127.3,9.68]
[1725703537994,146.24271717,127.34,127.3,9.68]
[1725703538690,3.9274,127.33,127.3,13.56307393]
[1725703538886,3.9274,127.33,127.31,9.68]
[1725703539091,3.9274,127.33,127.31,10.9965]
[1725703540388,3.9274,127.33,127.31,14.9245]
[1725703549311,150.16991717,127.34,127.32,3.9276]
[1725703549512,150.16991717,127.34,127.33,9.68]
[1725703551812,150.16991717,127.34,127.31,5.2443]
[1725703552008,150.16991717,127.34,127.32,9.68]
[1725703553114,3.9273,127.33,127.32,9.68]
[1725703553910,146.24271717,127.34,127.31,10.9965]
[1725703554112,146.24271717,127.34,127.3,13.56307393]
[1725703554412,3.9278,127.32,127.3,13.56307393]
[1725703558021,3.9278,127.32,127.3,17.49137393]
[1725703558218,3.9278,127.32,127.31,9.68]
[1725703558922,3.9275,127.33,127.31,9.68]
[1725703559120,3.9275,127.33,127.32,9.68]
[1725703561316,3.9272,127.34,127.32,9.68]
[1725703561922,3.9273,127.33,127.32,9.68]
[1725703565818,3.9272,127.34,127.32,13.6077]
[1725703566016,3.9272,127.34,127.33,9.68]
[1725703569227,3.9269,127.35,127.33,9.68]
[1725703569426,3.84190587,127.37,127.34,9.68]
[1725703569719,31.3832,127.48,127.36,9.68]
[1725703569720,2.6757,127.42,127.36,9.68]
[1725703569924,3.9261,127.38,127.37,9.68]
[1725703580833,3.9265,127.36,127.33,3.9271]
[1725703581034,3.9265,127.36,127.35,9.68]
[1725703581832,13.69926402,127.41,127.31,4.1088]
[1725703582034,10.5251,127.42,127.31,4.1088]
[1725703582035,33.76762504,127.4,127.31,4.1088]
[1725703582345,3.927,127.34,127.33,9.68]
[1725703585142,3.927,127.34,127.31,6.6182]
[1725703585345,3.927,127.34,127.33,9.68]
[1725703587843,3.927,127.34,127.31,6.6182]
[1725703588042,3.927,127.34,127.33,9.68]
[1725703593542,9.68,127.37,127.31,9.68]
[1725703593844,1.3642,127.36,127.31,9.68]
[1725703594051,3.9277,127.32,127.31,9.68]
[1725703596454,1.2901,127.37,127.31,9.68]
[1725703596641,9.1508,127.39,127.35,9.68]
[1725703596837,0.50774378,127.38,127.35,9.68]
[1725703597059,3.9264,127.36,127.35,9.68]
[1725703598151,18.8308,127.39,127.33,9.68]
[1725703598347,10.18782009,127.38,127.33,9.68]
[1725703598552,0.50782009,127.37,127.33,9.68]
[1725703599446,3.927,127.34,127.33,9.68]
[1725703602753,3.9278,127.32,127.3,3.99403594]
[1725703603055,3.9278,127.32,127.31,9.68]
[1725703603856,3.9275,127.33,127.31,9.68]
[1725703604048,3.9275,127.33,127.32,9.68]
[1725703604852,3.9272,127.34,127.32,9.68]
[1725703605050,3.9272,127.34,127.33,9.68]
[1725703606456,3.9274,127.33,127.32,9.68]
[1725703609754,3.9274,127.33,127.3,7.84679402]
[1725703609755,9.68,127.36,127.3,9.68]
[1725703610661,3.928,127.31,127.3,9.68]
[1725703619573,3.9283,127.3,127.29,9.68]
[1725703621779,13.57486575,127.33,127.18,7.8636]
[1725703622084,9.68,127.31,127.25,9.68]
[1725703622381,3.9294,127.27,127.25,9.68]
[1725703625073,3.9294,127.27,127.25,13.6098]
[1725703626368,3.929,127.28,127.25,13.6098]
[1725703626568,1.3195,127.34,127.27,9.68]
[1725703626775,3.85294734,127.33,127.29,9.68]
[1725703626978,3.85294734,127.33,127.31,9.68]
[1725703627182,3.9277,127.32,127.31,9.68]
[1725703634487,2.6016,127.39,127.29,1.4146]
[1725703634678,4.41468345,127.38,127.34,9.68]
[1725703634886,3.90673884,127.38,127.34,9.68]
[1725703635191,3.9262,127.37,127.35,9.68]
[1725703635381,5.89420087,127.43,127.35,9.68]
[1725703635382,7.24860087,127.43,127.35,9.68]
[1725703635685,0.50760832,127.42,127.37,9.68]
[1725703635895,3.9258,127.38,127.37,9.68]
[1725703636685,3.9258,127.38,127.36,9.68]
[1725703637386,3.9261,127.37,127.35,9.68]
[1725703639786,3.926,127.38,127.36,9.68]
[1725703639986,9.68,127.42,127.36,9.68]
[1725703640182,0.50761698,127.41,127.36,9.68]
[1725703640692,0.50761664,127.4,127.36,9.68]
[1725703640889,0.50761664,127.39,127.36,9.68]
[1725703641085,9.68,127.42,127.36,9.68]
[1725703641291,0.50761631,127.41,127.36,9.68]
[1725703641694,9.68,127.42,127.36,9.68]
[1725703641894,0.50761631,127.41,127.36,9.68]
[1725703642398,3.9258,127.38,127.36,9.68]
[1725703643890,3.9261,127.37,127.35,9.68]
[1725703644394,3.9259,127.38,127.36,9.68]
[1725703653903,3.9261,127.37,127.36,9.68]
[1725703654902,3.9261,127.37,127.35,9.68]
[1725703667418,3.9264,127.36,127.35,9.68]
[1725703676329,3.9263,127.37,127.35,9.68]
[1725703676632,3.9263,127.37,127.36,9.68]
[1725703677028,3.9259,127.38,127.36,13.52590406]
[1725703677227,3.9259,127.38,127.37,9.68]
[1725703691552,3.9254,127.4,127.37,9.68]
[1725703691754,3.9254,127.4,127.39,9.68]
[1725703692057,4.43288793,127.4,127.39,9.68]
[1725703693445,4.43288793,127.4,127.36,9.2062858]
[1725703693650,3.9255,127.39,127.37,9.68]
[1725703707767,186.34662362,127.43,127.35,1.3952]
[1725703707957,11.48931032,127.42,127.36,9.68]
[1725703708161,0.50751032,127.41,127.36,9.68]
[1725703709057,3.9261,127.37,127.36,9.68]
[1725703711271,3.9259,127.38,127.36,9.68]
[1725703711463,3.9259,127.38,127.35,1.3952]
[1725703711464,3.9259,127.38,127.37,9.68]
[1725703711664,153.08662362,127.43,127.37,9.68]